Cogmind - Beta 17.1 @@@ ROGUE MODE // 2026.09.11 @ 21:26:43 Player: Ethranok Result: Destroyed by Autobeam Turret with Autobeam Performance ------------- Evolutions (0) 0 Regions Visited (2) 400 Robots Destroyed (14) 70 Value Destroyed (323) 323 Prototype IDs (0) 0 Alien Tech Used (0) 0 Bonus (0) 0 TOTAL SCORE: 793 Bonus ------- None Cogmind --------- Core Integrity 0/250 Matter 300/300 Energy 100/100 System Corruption 0% Temperature Cool (6) Movement Core (350) Ox6 Location -10/Subcaves Parts ------- > --- POWER (1) -------- (None) > --- PROPULSION (2) --- (None) > --- UTILITY (2) ------ Large Storage Unit Sensor Array > --- WEAPON (2) ------- (None) > --- INVENTORY (15) --- Light Ion Engine Light Nuclear Core Medium Matter Pod (100) Sensor Array Medium Laser Peak State ------------ > --- POWER ------------ Light Nuclear Core > --- PROPULSION ------- Aluminum Leg Aluminum Leg > --- UTILITY ---------- Large Storage Unit Sensor Array > --- WEAPON ----------- Medium Laser Assault Rifle > --- INVENTORY -------- Light Ion Engine Light Nuclear Core Medium Matter Pod Medium Laser [Rating: 9] Favorites ----------- Power Light Nuclear Core Engine Ion Engine Power Core Light Nuclear Core Propulsion Aluminum Leg Leg Aluminum Leg Utility Sensor Array Device Sensor Array Storage Large Storage Unit Weapon Medium Laser Energy Gun Medium Laser Ballistic Gun Assault Rifle Build | -11 -10 -10 ------- Run | Yrd Mat Sub Slots Evolved . | . . . Power . | . . . Propulsion . | . . . Utility . | . . . Weapon . | . . . Parts Attached 13 | 6 7 . Power 2 | 1 1 . Engine 1 | 1 . . Core 1 | . 1 . Reactor . | . . . Propulsion 3 | 2 1 . Treads . | . . . Leg 3 | 2 1 . Wheel . | . . . Hover . | . . . Flight . | . . . Utility 4 | 1 3 . Device 2 | . 2 . Storage 2 | 1 1 . Processor . | . . . Hackware . | . . . Protection . | . . . Artifact . | . . . Weapon 4 | 2 2 . Energy Gun 3 | 2 1 . Energy Cannon . | . . . Ballistic Gun 1 | . 1 . Ballistic Cannon . | . . . Launcher . | . . . Special Weapon . | . . . Impact Weapon . | . . . Slashing Weapon . | . . . Piercing Weapon . | . . . Special Melee Weapon . | . . . Unidentified Prototypes . | . . . Parts Lost 7 | . 2 5 Power 2 | . 1 1 Propulsion 2 | . . 2 Utility 1 | . 1 . Weapon 2 | . . 2 Highest Loss Streak 5 | . 2 5 To Critical Strikes . | . . . Average Backups 4 | 1 4 5 Power 1 | . 1 2 Propulsion . | . . . Utility 1 | . 1 2 Weapon 1 | 1 1 1 Tool/Special . | . . . Unused Backups 5 | 1 . 4 Power 2 | . . 2 Propulsion 1 | 1 . . Utility 2 | . . 2 Weapon . | . . . Tool/Special . | . . . Average Slot Usage (%) 98 | . 98 97 Engine 5 | . 6 . Core 8 | . 7 14 Leg 27 | . 28 26 Device 12 | . 12 14 Storage 14 | . 14 14 Energy Gun 16 | . 16 14 Ballistic Gun 11 | . 11 13 Peak Build Rating 9 | 6 9 9 Average Rating 7 | 4 7 8 On Entrance 5 | . 6 9 Avg Prop Armor Cover (%) 20 | 20 . . Naked Turns . | . . . Heaviest Build 30 | 14 30 30 Greatest Support 20 | 20 20 20 Greatest Overweight (x) 9 | 2 1 9 Average Overweight (x) . | . . 1 Largest Inventory Capacity 15 | 8 15 15 Average Capacity 11 | 6 11 15 Most Carried 7 | 5 7 5 Average Carried 4 | 2 4 5 Final Capacity 15 | 8 15 15 Final Carried 5 | 2 5 5 Class Distribution -------------------- 100% | Mutant Dominant Class ---------------- Mutant | -10/Materials Mutant | -10/Subcaves Resources | -11 -10 -10 ----------- Run | Yrd Mat Sub Matter Collected 512 | 197 288 27 Remotely . | . . . Salvage Created 434 | . 371 63 Parts 17 | . 13 4 Haulers Intercepted 1 | . 1 . Recyclers Shooed . | . . . Parts Field Recycled . | . . . Retrieved Matter . | . . . Parts Self-Destructed 4 | . . 4 Prevented . | . . . Parts Restored . | . . . Kills | -11 -10 -10 ------- Run | Yrd Mat Sub Combat Hostiles Destroyed 11 | . 7 4 Guns 11 | . 7 4 Classes Destroyed 5 | . 4 1 Worker 1 | . 1 . Hauler 1 | . 1 . Watcher 1 | . 1 . Swarmer 4 | . . 4 Grunt 7 | . 7 . Best Kill Streak 6 | . 6 4 Combat Bots Only 4 | . 3 4 Max Kills in Single Turn 1 | . 1 1 Gunslinging . | . . . Exploded . | . . . Melee . | . . . Uniques/NPCs Destroyed . | . . . Combat | -11 -10 -10 -------- Run | Yrd Mat Sub Hostile Shots Fired 131 | . 41 90 Missed 39 | . 9 30 Hits 92 | . 32 60 Projectile 92 | . 32 60 Damage Taken 897 | . 498 399 Core 256 | . 96 160 Absorbed by Shields . | . . . Core Remaining (%) 100 | 100 . . Volleys Fired 42 | . 34 8 Largest 2 | . 2 2 Hottest 100 | . 100 70 Shots Fired 84 | . 68 16 Gun 84 | . 68 16 Cannon . | . . . Launcher . | . . . Special . | . . . Kinetic 32 | . 24 8 Thermal 52 | . 44 8 Explosive . | . . . Electromagnetic . | . . . Robot Hit Streak 9 | . 9 6 Robot Miss Streak 3 | . 3 3 Penetration Max . | . . . Secondary Targets 2 | . . 2 Max Gunslinging Chain 1 | . . 1 Shots Hit Robots 56 | . 44 12 Core Hits 23 | . 19 4 Critical Kills . | . . . Critical Parts Destroyed . | . . . Critical Strikes 5 | . 3 2 Burn 5 | . 3 2 Melee Attacks . | . . . Impact . | . . . Slashing . | . . . Piercing . | . . . Sneak Attacks . | . . . Combat Hostiles . | . . . Follow-up Attacks . | . . . Damage Inflicted 744 | . 590 154 Guns 740 | . 586 154 Cannons . | . . . Explosions . | . . . Melee . | . . . Ramming 4 | . 4 . Kinetic 278 | . 199 79 Thermal 462 | . 387 75 Explosive . | . . . Electromagnetic . | . . . Impact . | . . . Slashing . | . . . Piercing . | . . . Highest Corruption . | . . . Average Corruption . | . . . Corruption Purged . | . . . Corruption Blocked . | . . . Overload Shots . | . . . Overflow Damage . | . . . Projectiles . | . . . Explosions . | . . . Melee . | . . . Knockbacks . | . . . Impact . | . . . Kinetic . | . . . Secondary . | . . . Self-Inflicted Damage . | . . . Shots . | . . . Rammed . | . . . Targets Rammed 2 | . 2 . Kicked 2 | . 2 . Crushed . | . . . Highest Temperature 231 | . 231 . Average Temperature 87 | . 87 . Received Heat Transfer 453 | . 225 228 Siege Activations . | . . . Martial Activations . | . . . Shielding Activations . | . . . Robots Disrupted . | . . . Combat Hostiles . | . . . Robots Corrupted . | . . . Combat Hostiles . | . . . Parts Fried . | . . . Impact Corruptions . | . . . Robots Melted . | . . . Combat Hostiles . | . . . Parts Melted 4 | . 4 . Heat Transferred 1739 | . 1369 370 Parts Sabotaged . | . . . Parts Stolen . | . . . Parts Stripped . | . . . Power Chain Reactions . | . . . Alert | -11 -10 -10 ------- Run | Yrd Mat Sub Maximum Alert Level . | . . . Low Security (%) 100 | 100 100 . Level 1 . | . . . Level 2 . | . . . Level 3 . | . . . Level 4 . | . . . Level 5 . | . . . High Security . | . . . Max Security . | . . . Peak Influence 100 | . 100 . Initial . | . . . Average 22 | . 24 . Influence Increases 389 | . 219 170 Destroy 0b10 Robot/C 220 | . 140 80 Destroy 0b10 Robot/NC 15 | . 15 . Destroy Leader 34 | . 34 . Lose Combat Pursuer 120 | . 30 90 Influence Decreases 299 | . 219 80 Time Decay 229 | . 199 30 Lost Part 70 | . 20 50 Squads Dispatched 1 | . 1 . Investigation 1 | . 1 . Extermination . | . . . Reinforcement . | . . . Assault . | . . . Garrison . | . . . Intercept . | . . . Searches Triggered . | . . . Construction Impeded . | . . . Haulers Reinforced . | . . . Active Scanning Responses . | . . . Cargo Convoy Interrupts . | . . . Stealth | -11 -10 -10 --------- Run | Yrd Mat Sub Distress Signals 1 | . 1 . Communications Jammed . | . . . Distress Signals . | . . . Times Spotted 21 | . 14 7 Peak Tracking Total 6 | . 6 6 Tactical Retreats 4 | . 2 2 Traps | -11 -10 -10 ------- Run | Yrd Mat Sub Traps Triggered 2 | . 2 . Indirectly . | . . . Trap Hack Attempts . | . . . Triggered . | . . . Disarmed . | . . . Reprogrammed . | . . . Reused . | . . . Traps Extracted . | . . . Installed . | . . . Triggered . | . . . Machines | -11 -10 -10 ---------- Run | Yrd Mat Sub Machines Disabled . | . . . Max in Single Turn . | . . . Machines Repaired . | . . . Machines Dismantled . | . . . Machines Sabotaged . | . . . Overloaded Fab Kills . | . . . Hacking | -11 -10 -10 --------- Run | Yrd Mat Sub Machines Accessed 2 | . 2 . Terminals 1 | . 1 . Fabricators . | . . . Repair Stations . | . . . Recycling Units 1 | . 1 . Scanalyzers . | . . . Garrison Access . | . . . Total Hacks 5 | . 5 . Successful 1 | . 1 . Failed 4 | . 4 . Catastrophic 1 | . 1 . Database Lockouts . | . . . Manual 5 | . 5 . Terminals 4 | . 4 . Fabricators . | . . . Repair Stations . | . . . Recycling Units 1 | . 1 . Scanalyzers . | . . . Garrison Access . | . . . Terminal Hacks . | . . . Fabricator Hacks . | . . . Repair Station Hacks . | . . . Recycling Unit Hacks 1 | . 1 . Report Inventory 1 | . 1 . Scanalyzer . | . . . Garrison Access Hacks . | . . . Unauthorized Hacks . | . . . Terminals . | . . . Fabricators . | . . . Repair Stations . | . . . Recycling Units . | . . . Scanalyzers . | . . . Garrison Access . | . . . Data Cores Recovered . | . . . Used . | . . . Hacking Detections 1 | . 1 . Full Trace Events 1 | . 1 . Feedback Events . | . . . Feedback Blocked . | . . . Robot Schematics Acquired . | . . . Robots Built . | . . . Authchips . | . . . Time . | . . . Total Robot Build Rating . | . . . Part Schematics Acquired . | . . . Parts Built . | . . . Authchips . | . . . Time . | . . . Total Part Build Rating . | . . . Part Studies Acquired . | . . . Parts Repaired . | . . . Time . | . . . Parts Recycled . | . . . Recycled Matter . | . . . Retrieved Matter . | . . . Retrieved Components . | . . . Parts Scanalyzed . | . . . Part Schematics Acquired . | . . . Parts Damaged . | . . . Bothacking | -11 -10 -10 ------------ Run | Yrd Mat Sub Used RIF Installer . | . . . Robots Hacked . | . . . Non-combat . | . . . Combat . | . . . Robot Hacks Applied . | . . . Relay Couplers Released . | . . . Fabnet Peak Effective % . | . . . Robots Rewired . | . . . Allies Hacked . | . . . Hacks Repelled . | . . . Allies | -11 -10 -10 -------- Run | Yrd Mat Sub Total Allies . | . . . Largest Group . | . . . Highest-Rated Group . | . . . Highest-Rated Ally . | . . . Total Orders . | . . . Ally Attacks . | . . . Total Damage . | . . . Kills . | . . . Allies Corrupted . | . . . Allies Melted . | . . . Intel | -11 -10 -10 ------- Run | Yrd Mat Sub Active Infowar (turns) 855 | . 653 202 Sensors 855 | . 653 202 Robot Analysis Total . | . . . Derelict Logs Recovered 1 | . . 1 Drone Launches . | . . . Drone Recoveries . | . . . Exploration | -11 -10 -10 ------------- Run | Yrd Mat Sub Turns Passed 968 | 56 710 202 Spaces Moved 491 | 42 359 90 Core 18 | 16 . 2 Treads . | . . . Legs 473 | 26 359 88 Wheels . | . . . Hover . | . . . Flight . | . . . Fastest Speed 50 | 50 120 190 Average Speed 158 | 98 155 198 Slowest Speed 500 | 150 190 500 Overloaded Moves . | . . . Propulsion Burnouts . | . . . Robots Hopped . | . . . Potential Cave-ins . | . . . Cave-ins Triggered . | . . . Exploration Rate (%) 21 | 4 48 11 Regions Visited 2 Branch Regions 1 Pre-discovered Areas 1 | . . 1 Known Exits Taken . | . . . Unknown Exits Taken 2 | 1 1 . Scrap Searched . | . . . Spaces Dug . | . . . Terrain Destroyed . | . . . Melee . | . . . Projectile . | . . . AOE . | . . . Terrain Rammed . | . . . Walls Destroyed . | . . . Machines Disabled . | . . . Actions | -11 -10 -10 --------- Run | Yrd Mat Sub Total 599 | 59 442 98 Wait 27 | . 27 . Move 489 | 41 358 90 Hop . | . . . Pick Up 20 | 10 10 . Fast Attach . | . . . Attach 9 | 6 3 . Detach . | . . . Swap 4 | . 4 . Drop 6 | 2 4 . Fire 42 | . 34 8 Melee . | . . . Ram . | . . . Kick 2 | . 2 . Crush . | . . . Escape Stasis . | . . . Rewire . | . . . Trap . | . . . Miscellaneous . | . . . Route ------- -11/Scrapyard -10/Materials (discovered 3 exits: [*Mat x2] / [*Sub]) -10/Subcaves (discovered 1 exit: [*Rec]) History --------- Turn | Location | Event 7 | -11/Scrapyard | Discovered new exit (range 15) 57 | -11/Scrapyard | Entered Materials 321 | -10/Materials | Build established: Mutant 415 | -10/Materials | Discovered new exit (range 15) 512 | -10/Materials | Discovered new exit (range 11) 752 | -10/Materials | Discovered new exit (range 6) 767 | -10/Materials | Entered Subcaves 779 | -10/Subcaves | Learned location of Mines (-9) 941 | -10/Subcaves | Core integrity fell below 50% 949 | -10/Subcaves | Discovered new exit (range 9) 966 | -10/Subcaves | Core integrity fell below 20% 969 | -10/Subcaves | Destroyed by Autobeam Turret with Autobeam Last Messages --------------- 00779_ Acquired derelict log, extracted data. World map updated: -9/Mines. 00920_ S-10 Pest springs to life. 00923_ S-10 Pest destroyed. 00926_ Switching to secondary target: S-10 Pest. 00932_ S-10 Pest destroyed. 00932_ Switching to secondary target: S-10 Pest. 00935_ Flight Unit fries itself beyond repair. 00938_ Destroyed Flight Unit. 00941_ S-10 Pest suffers critical hit (Burn). 00944_ S-10 Pest destroyed. 00947_ Acquired 27 matter. 00948_ Lgt. Ion Engine fries itself beyond repair. 00949_ EXIT=FOUND 00950_ Lgt. Assault Rifle fries itself beyond repair. 00950_ Aluminum Leg destroyed. 00955_ Assault Rifle destroyed. 00959_ Aluminum Leg destroyed. 00961_ Lgt. Nuclear Core destroyed. 00965_ Med. Laser destroyed. Map ----- +----------------------------------------------------+ | ?????????????????????????????????????????????????? | | ?????????????????????????????????????????????????? | | ?????????????????????????????????????????????????? | | ?????????????????????????????????????????????????? | | ?????????????????????????????????????????????????? | | ?????????????????????????????????????????????????? | | ?????????????????????????????????????????????????? | | ?????????????????????????????????????????????????? | | ????????????????????????????????? ?????????????? | | ??????????????????????????????? ?????????????? | | ?????????????????????????????? ?????????????? | | ??????????????????????????????# #????????????? | | ??????????????????????????????# #????????????? | | ????????????????????????###??## #????????????? | | ??????????????????????? # ### #????????????? | | ??????????????????????# ##???????????? | | ???????????????????????# #???????????? | | ????????????????????????# #???????????? | | ????????????????????????# ##??????????? | | ????????????????????????# #??????????? | | ?????????????????????????# ###????????? | | ????????????????????????????# # ##???????? | | ????????????????????????###???# #???????? | | ????????????????????#####<###### ####????? | | ????????????????????#"""" """"## ### # #????? | | ????????????????????#" "@" "## ##?#### #????? | | ????????????????????#" t t "## #?????# ##????? | | ????????????????????# # ##?##?## #?????? | | ????????????????????# # ### ## #####?? | | ????????????????????#" "## ### | | ????????????????????####%% ##### ### | | ??????????????????????# % #?#### ## | | ??????????????????????## #????## # | | ???????????????????????## #??#### ## # | | ????????????????????????# ####### # ### # | | ????????????????????????# ##??# ## | | ??????????????????????? #??## ## | | ????????????????????? ## ??# ### | | ???????????????????? ?# ?## #### ##?# | | ??????????????????? ? ## # #?# ###???# | | ?????????????????? ##? ## #?# ##?????? | | ?????????????????? ## #?? ### #?# ##?????? | | ?????????????????? ##?###???## #### #?????? | | ??????????????????? ?????????## # ##?????? | | ???????????????????? ?????????# #### #?????? | | ????????????????????????????????# ##??## ####??? | | ????????????????????????????????# #????# # ##?? | | ????????????????????????????????## #????# ### | | ?????????????????????????????????# ##??## # # # # | | ?????????????????????????????????# #### ### | +----------------------------------------------------+ Best States ------------- Heat Dissipation 25 Energy Generation 14 Energy Capacity 250 Matter Stores 300 Matter Capacity 300 Sight Range 16 Robot Scan Range 14 Terrain Scan Density 10 Evasion (%) 55 Item Schematics ----------------- None Robot Schematics ------------------ None Fabricated ------------ Nothing Repaired ---------- Nothing Studied --------- None Alien Tech Used ----------------- None Achievements -------------- None Challenges ------------ None Game ------ Seed CobblerMiniDrillbomb Manual? 0 Play Time 00:10:35 Cumulative 12.6 hours Start 2026.09.11 @ 21:17:15 End 2026.09.11 @ 21:26:43 Sessions 1 Manual Loads 0 Difficulty Rogue Special Mode None Game No. 18 Rogue 18 Adventurer 0 Explorer 0 Win Type - Total 0 Types 0/0/0/0/0/0/0/0/0/0 Lore% 6 Gallery% 11 Achievement% 11 Wizard Run 0 Options --------- Layout 0 ASCII 0 Keyboard 0 Movement Arrows Keybinds 0 Fullscreen 1 Font 24/Smallcaps Map View 56x25 Zoom Use 100% Tactical HUD 1 Map Filters NONE Filters NONE Steam 1 RUN: 3cdf146a-71db-464d-a2cb-2801c80fe7ae